fUSD/lending_fUSD_20260129
["ID","MTS","AMOUNT","RATE_DAILY","PERIOD"]
[403913377,1769668237927,-416.50122794,0.00017938,2]
[403913378,1769668237936,-5727.60802616,0.00017938,2]
[403913379,1769668237947,-300.0,0.00017948,2]
[403913380,1769668237956,-600.0,0.00017948,2]
[403913381,1769668237966,-250.0,0.00017948,2]
[403913382,1769668237975,-236.33317254,0.00017962,2]
[403913383,1769668237985,-150.0,0.00017973,2]
[403913385,1769668237995,-150.0,0.00017973,2]
[403913387,1769668238003,-290.39862941,0.00017983,2]
[403913389,1769668238012,-235.08018115,0.0001799,2]
[403913391,1769668238021,-235.08018115,0.0001799,2]
[403913393,1769668238031,-235.08018115,0.0001799,2]
[403913395,1769668238041,-4742069.26141179,0.00018,2]
[403913397,1769668238051,-665392.54973884,0.00018,2]
[403913402,1769668239766,-18564.94316385,0.00018,2]
[403913403,1769668239827,-4920.78164875,0.00018,2]
[403913404,1769668239889,-256.55499374,0.00018,2]
[403913405,1769668239952,-602.51565385,0.00018,2]
[403913417,1769668242878,-5597.30000001,0.00018,2]
[403913422,1769668245827,-151.0,0.00016487,2]
[403913423,1769668245837,-2448.57784993,0.00018,2]
[403913447,1769668638355,1000.0,0.00019,30]
[403913532,1769669247096,-500.0,0.00016373,2]
[403913533,1769669247117,-287.0,0.00016373,2]
[403913534,1769669247137,-200.0,0.00016642,2]
[403913535,1769669247159,-406.9,0.00016696,2]
[403913536,1769669247181,-195.0,0.00016766,2]
[403913537,1769669247201,-300.0,0.00016766,2]
[403913538,1769669247223,-541.92178997,0.00016766,2]
[403913539,1769669250076,-658.07821003,0.00016766,2]
[403913540,1769669250098,-9640.14,0.00016768,2]
[403913541,1769669250119,-156.63,0.00016772,2]
[403913542,1769669250140,-210.31593337,0.00016921,2]
[403913543,1769669250164,-216.55,0.00016963,2]
[403913544,1769669250185,-250.0,0.00017,2]
[403913545,1769669250208,-749.97,0.00017137,2]
[403913546,1769669250231,-503.6719094,0.00017192,2]
[403913547,1769669250251,-210.24297639,0.00017192,2]
[403913548,1769669250271,-550.0,0.00017201,2]
[403913549,1769669250290,-1002.24347503,0.00017201,2]
[403913550,1769669250311,-6429.04737754,0.00017202,2]
[403913557,1769669387323,182.7,0.00021,30]
[403913561,1769669431810,-1302.796333,0.00016511,2]
[403913562,1769669431819,-151.0,0.00016595,2]
[403913563,1769669431828,-392.74,0.000166,2]
[403913564,1769669431838,-206.89,0.0001694,2]
[403913565,1769669431847,-300.0,0.00017201,2]
[403913566,1769669431856,-45510.97262246,0.00017202,2]
[403913567,1769669431866,-500.0,0.00017262,2]
[403913568,1769669431874,-168.0,0.00017401,2]
[403913569,1769669431883,-168.0,0.00017405,2]
[403913570,1769669431892,-168.0,0.00017529,2]
[403913571,1769669431901,-9460.44,0.00017728,2]
[403913572,1769669431910,-9999.99,0.00017728,2]
[403913573,1769669431919,-150.99,0.00017728,2]
[403913574,1769669431928,-168.0,0.00017802,2]
[403913575,1769669431937,-156.63,0.00017821,2]
[403913576,1769669431947,-384.67354295,0.00017896,2]
[403913577,1769669431956,-1015.15956598,0.00017896,2]
[403913578,1769669431965,-1790.8618051,0.00017896,2]
[403913579,1769669431974,-280.2,0.00017899,2]
[403913580,1769669431983,-273.0332,0.000179,2]
[403913581,1769669431992,-268.1736812,0.000179,2]
[403913582,1769669432003,-357.00105252,0.000179,2]
[403913583,1769669432013,-195.0,0.00017919,2]
[403913584,1769669432022,-201.98336193,0.00017973,2]
[403913585,1769669432031,-1000.0,0.00017999,2]
[403913586,1769669432040,-10298.8498589,0.00017999,2]
[403913587,1769669432051,-500.0,0.00017999,2]
[403913588,1769669432062,-500.0,0.00017999,2]
[403913589,1769669432071,-500.0,0.00017999,2]
[403913591,1769669432080,-11672.6456436,0.00017999,2]
[403913593,1769669432094,-195.96527446,0.00017999,2]
[403913594,1769669432103,-2102.03054636,0.00018,2]
[403913596,1769669432115,-8080.14006683,0.00018,2]
[403913598,1769669432126,-10576.48492767,0.00018,2]
[403913608,1769669432204,-282.6331,0.00018,2]
[403913616,1769669438012,-604852.7755235,0.00018,2]
[403913617,1769669438022,-59240.77485362,0.00018,2]
[403913618,1769669438032,-1298.99936172,0.00018,2]
[403913619,1769669438456,-2286.32109706,0.00018,2]
[403913620,1769669438581,-286.83329126,0.00018,2]
[403913621,1769669438600,-2147.46294143,0.00018,2]
[403913626,1769669440431,-441.4297088,0.00018,2]
[403913627,1769669441014,-14707.49999988,0.00018,2]
[403913637,1769669446033,-1163.75824698,0.00018,2]
[403913659,1769669952472,6750.15,0.000155,2]
[403913660,1769669952493,3249.85,0.000155,2]
[403913661,1769669970393,1750.15,0.000155,2]
[403913681,1769670214918,1974.0,0.000153,5]
[403913682,1769670245841,5532.0,0.000151,5]
[403913683,1769670342333,-552.87211376,0.00015499,2]
[403913687,1769670438094,-598.12788624,0.00015499,2]
[403913688,1769670438115,-328.10696863,0.000155,2]
[403913693,1769670549147,-7921.74303137,0.000155,2]
[403913712,1769670608138,3722.67,0.00013943,2]
[403913719,1769670631980,-500.0,0.00016373,2]
[403913720,1769670631990,-501.22866478,0.00016373,2]
[403913721,1769670631999,-500.0,0.00016373,2]
[403913722,1769670632009,-500.0,0.00016373,2]
[403913723,1769670632018,-500.0,0.00016373,2]
[403913724,1769670632028,-650.0,0.00016373,2]
[403913725,1769670632038,-216.93470814,0.000164,2]
[403913726,1769670632048,-500.0,0.0001663,2]
[403913727,1769670632058,-5193.73915216,0.00016683,2]
[403913728,1769670632154,-351.5299975,0.00016683,2]
[403913764,1769670638045,-948.96561222,0.00016683,2]
[403913765,1769670638109,-33309.53523812,0.00016683,2]
[403913766,1769670638119,-768.26,0.00016716,2]
[403913767,1769670638129,-200.0,0.0001677,2]
[403913768,1769670638138,-400.0,0.00016788,2]
[403913769,1769670638147,-1852.42,0.0001689,2]
[403913770,1769670638157,-962.41902126,0.00016921,2]
[403913771,1769670638166,-262.85,0.00016958,2]
[403913772,1769670638175,-3240.0,0.00016996,2]
[403913773,1769670638185,-250.0,0.00017,2]
[403913774,1769670638194,-9999.99,0.00017,2]
[403913775,1769670638203,-500.0,0.00017049,2]
[403913776,1769670638213,-1802.62498389,0.0001705,2]
[403913777,1769670638222,-300.0,0.0001705,2]
[403913778,1769670638231,-18557.51,0.00017308,2]
[403913779,1769670638240,-400.0,0.00017418,2]
[403913780,1769670638249,-300.0,0.00017534,4]
[403913781,1769670638258,-4600.0,0.000177,6]
[403913782,1769670638267,-9200.0,0.000178,6]
[403913783,1769670638276,-300.0,0.00017808,4]
[403913784,1769670638286,-270.06352211,0.00017858,2]
[403913786,1769670638295,-712.70190767,0.00017858,2]
[403913788,1769670638304,-150.0,0.0001788,2]
[403913790,1769670638312,-500.0,0.00017899,2]
[403913792,1769670638322,-568.06065214,0.00017899,2]
[403913794,1769670638331,-500.0,0.00017899,2]
[403913796,1769670638341,-500.0,0.00017899,2]
[403913798,1769670638351,-13800.0,0.000179,6]
[403913800,1769670638360,-214.53894496,0.000179,2]
[403913802,1769670638370,-306.00090216,0.000179,2]
[403913804,1769670638379,-19765.9384913,0.00017934,2]
[403913806,1769670638388,-200.0,0.00017987,2]
[403913808,1769670638397,-186.8,0.00017998,2]
[403913809,1769670638406,-174.44504984,0.00017998,2]
[403913810,1769670638415,-500.0,0.00017998,2]
[403913811,1769670638424,-500.0,0.00017998,2]
[403913812,1769670638434,-500.0,0.00017998,2]
[403913813,1769670638443,-500.0,0.00017998,2]
[403913814,1769670638452,-500.0,0.00017998,2]
[403913816,1769670638462,-500.0,0.00017998,2]
[403913818,1769670638472,-500.0,0.00017998,2]
[403913819,1769670638481,-500.0,0.00017998,2]
[403913820,1769670638490,-500.0,0.00017998,2]
[403913821,1769670638499,-500.0,0.00017998,2]
[403913822,1769670638508,-500.0,0.00017998,2]
[403913823,1769670638517,-366.0545985,0.00017998,2]
[403913824,1769670638527,-500.0,0.00017998,2]
[403913825,1769670638536,-500.0,0.00017998,2]
[403913826,1769670638545,-500.0,0.00017998,2]
[403913827,1769670638554,-500.0,0.00017998,2]
[403913828,1769670638563,-500.0,0.00017998,2]
[403913829,1769670638573,-500.0,0.00017998,2]
[403913830,1769670638582,-500.0,0.00017998,2]
[403913831,1769670638591,-500.0,0.00017998,2]
[403913832,1769670638600,-500.0,0.00017998,2]
[403913833,1769670638609,-500.0,0.00017998,2]
[403913834,1769670638618,-500.0,0.00017998,2]
[403913835,1769670638627,-500.0,0.00017998,2]
[403913836,1769670638636,-500.0,0.00017998,2]
[403913837,1769670638645,-500.0,0.00017998,2]
[403913838,1769670638654,-500.0,0.00017998,2]
[403913839,1769670638663,-500.0,0.00017998,2]
[403913840,1769670638672,-500.0,0.00017998,2]
[403913841,1769670638682,-500.0,0.00017998,2]
[403913842,1769670638692,-157.55671395,0.00017998,2]
[403913843,1769670638702,-500.0,0.00017998,2]
[403913844,1769670638712,-500.0,0.00017998,2]
[403913845,1769670638722,-500.0,0.00017998,2]
[403913846,1769670638732,-500.0,0.00017998,2]
[403913847,1769670638742,-500.0,0.00017998,2]
[403913848,1769670638751,-500.0,0.00017998,2]
[403913849,1769670638761,-500.0,0.00017998,2]
[403913850,1769670638770,-500.0,0.00017998,2]
[403913851,1769670638782,-500.0,0.00017998,2]
[403913852,1769670638791,-499.99999999,0.00017998,2]
[403913853,1769670638800,-500.0,0.00017998,2]
[403913854,1769670638810,-500.0,0.00017998,2]
[403913855,1769670638820,-500.0,0.00017998,2]
[403913856,1769670638829,-500.0,0.00017998,2]
[403913857,1769670638839,-500.0,0.00017998,2]
[403913858,1769670638850,-500.0,0.00017998,2]
[403913859,1769670638860,-600.0,0.00017998,2]
[403913860,1769670638869,-500.0,0.00017998,2]
[403913861,1769670638879,-500.0,0.00017998,2]
[403913862,1769670638888,-285.29645974,0.00017998,2]
[403913863,1769670638897,-471.4456018,0.00017999,2]
[403913864,1769670638906,-158.81192295,0.00017999,2]
[403913865,1769670638915,-490.41113292,0.00017999,2]
[403913866,1769670638924,-500.0,0.00017999,2]
[403913867,1769670638934,-500.0,0.00017999,2]
[403913868,1769670638943,-500.0,0.00017999,2]
[403913869,1769670638953,-187.47383958,0.00017999,2]
[403913870,1769670638962,-395.9856639,0.00017999,2]
[403913871,1769670638972,-4451.16319967,0.00018,2]
[403913872,1769670638981,-507774.19189239,0.00018,2]
[403913873,1769670638994,-8668.5334601,0.00018,2]
[403913874,1769670639078,-88700.0,0.00018,2]
[403913875,1769670639116,-900.44166455,0.00018,2]
[403913906,1769670643483,-8295.82976815,0.00018,2]
[403913909,1769670646202,-882.54,0.00018,2]
[403913910,1769670646214,-2598.7900468,0.00018,2]
[403913911,1769670646252,-7517.74497807,0.00018,2]
[403913981,1769670962888,273.21,0.00021,30]
[403913986,1769671026078,7025.7,0.00013779,2]
[403914028,1769671636120,-166.66,0.00016023,2]
[403914029,1769671636142,-183.0408,0.00016137,2]
[403914030,1769671636168,-88.01162167,0.000162,5]
[403914034,1769671748111,-234.76250793,0.00015983,2]
[403914035,1769671748134,-619.54197274,0.00015983,2]
[403914036,1769671748156,-1092.94547657,0.00015983,2]
[403914037,1769671748178,-1634.98106817,0.00015983,2]
[403914038,1769671748204,-1722.50476059,0.00015983,2]
[403914039,1769671750119,-465.10822255,0.00015983,2]
[403914041,1769671765099,-24.57171686,0.00015983,2]
[403914042,1769671765121,-151.0,0.00016011,2]
[403914043,1769671765141,-56.92889951,0.00016011,2]
[403914044,1769671773123,-94.07110049,0.00016011,2]
[403914045,1769671774107,-151.0,0.00016047,2]
[403914046,1769671774127,-151.0,0.00016047,2]
[403914047,1769671774147,-4911.98837833,0.000162,5]
[403914048,1769671789759,151.0,0.00016123,2]
[403914049,1769671789949,151.0,0.00016123,2]
[403914054,1769671806235,151.0,0.00016123,2]
[403914055,1769671806326,151.0,0.00016123,2]
[403914060,1769671822406,151.0,0.00016104,2]
[403914071,1769671838293,-205.60368029,0.00016273,2]
[403914072,1769671838304,-166.66,0.0001636,2]
[403914073,1769671838313,-1200.0,0.00016372,2]
[403914074,1769671838322,-300.0,0.00016372,2]
[403914075,1769671838332,-191.0,0.00016372,2]
[403914076,1769671838341,-500.0,0.00016373,2]
[403914077,1769671838350,-539.90934846,0.00016373,2]
[403914078,1769671838359,-503.09870012,0.00016373,2]
[403914079,1769671838369,-500.0,0.00016373,2]
[403914080,1769671838378,-501.50416209,0.00016373,2]
[403914081,1769671838387,-500.31115882,0.00016373,2]
[403914082,1769671838397,-156.18849675,0.00016373,2]
[403914083,1769671838406,-500.0,0.00016373,2]
[403914084,1769671838415,-160.19813377,0.00016373,2]
[403914085,1769671838424,-500.0,0.00016373,2]
[403914086,1769671838433,-500.0,0.00016373,2]
[403914087,1769671838442,-500.0,0.00016373,2]
[403914088,1769671838451,-186.8,0.00016373,2]
[403914089,1769671838460,-186.80495241,0.00016647,2]
[403914090,1769671838469,-166.66,0.00016698,2]
[403914091,1769671838478,-166.66,0.00017035,2]
[403914093,1769671838488,-1000.0,0.00017091,2]
[403914094,1769671838497,-1269.38,0.00017094,2]
[403914095,1769671838506,-952.82,0.00017235,2]
[403914096,1769671838515,-166.66,0.00017372,2]
[403914097,1769671838524,-3200.0,0.000174,6]
[403914098,1769671838533,-300.0,0.000174,6]
[403914099,1769671838543,-6400.0,0.000175,6]
[403914101,1769671838552,-600.0,0.000175,6]
[403914102,1769671838561,-9700.0,0.000176,6]
[403914103,1769671838570,-900.0,0.000176,6]
[403914104,1769671838580,-12900.0,0.000177,6]
[403914105,1769671838589,-1300.0,0.000177,6]
[403914106,1769671838598,-166.66,0.0001771,2]
[403914108,1769671838608,-252.0008295,0.00017726,2]
[403914111,1769671838617,-306.04111667,0.00017751,2]
[403914113,1769671838626,-16100.0,0.000178,6]
[403914115,1769671838635,-1600.0,0.000178,6]
[403914117,1769671838644,-250.0,0.0001782,2]
[403914119,1769671838653,-420.0,0.00017893,2]
[403914121,1769671838662,-3200.0,0.000179,6]
[403914123,1769671838671,-864.39353986,0.000179,2]
[403914124,1769671838680,-300.0,0.000179,6]
[403914125,1769671838688,-171.63115596,0.000179,2]
[403914126,1769671838700,-80185.07945468,0.000179,2]
[403914127,1769671838709,-168.0,0.00017935,2]
[403914128,1769671838718,-1831.823,0.00017948,2]
[403914129,1769671838727,-1269.38,0.00017948,2]
[403914130,1769671838735,-179.513,0.00017948,2]
[403914131,1769671838744,-492.97765,0.0001796,2]
[403914132,1769671838752,-492.97765,0.0001796,2]
[403914133,1769671838761,-492.97766,0.0001796,2]
[403914134,1769671838771,-492.97765,0.0001798,2]
[403914135,1769671838781,-492.97766,0.0001798,2]
[403914136,1769671838790,-492.97765,0.0001798,2]
[403914137,1769671838800,-4237.8758266,0.00017981,2]
[403914138,1769671838809,-500.0,0.00017999,2]
[403914139,1769671838819,-500.0,0.00017999,2]
[403914140,1769671838829,-500.0,0.00017999,2]
[403914141,1769671838838,-500.0,0.00017999,2]
[403914142,1769671838848,-500.0,0.00017999,2]
[403914143,1769671838859,-500.0,0.00017999,2]
[403914144,1769671838868,-500.0,0.00017999,2]
[403914145,1769671838877,-500.0,0.00017999,2]
[403914146,1769671838887,-500.0,0.00017999,2]
[403914147,1769671838896,-500.0,0.00017999,2]
[403914148,1769671838905,-360.07461884,0.00017999,2]
[403914149,1769671838914,-500.0,0.00017999,2]
[403914150,1769671838924,-500.0,0.00017999,2]
[403914151,1769671838933,-500.0,0.00017999,2]
[403914152,1769671838942,-598.00979136,0.00017999,2]
[403914153,1769671838951,-150.0,0.00017999,2]
[403914154,1769671838959,-500.0,0.00017999,2]
[403914155,1769671838968,-500.0,0.00017999,2]
[403914156,1769671838977,-577.13765043,0.00017999,2]
[403914157,1769671838986,-363.74947603,0.00017999,2]
[403914158,1769671838995,-500.0,0.00017999,2]
[403914159,1769671839005,-500.0,0.00017999,2]
[403914160,1769671839013,-505.31031909,0.00017999,2]
[403914161,1769671839023,-335439.38756066,0.00018,2]
[403914162,1769671839035,-17652.60488521,0.00018,2]
[403914163,1769671839064,-50000.0,0.00018,2]
[403914164,1769671839074,-494.7841788,0.00018,2]
[403914165,1769671839089,-3910.42372984,0.00018,2]
[403914166,1769671839415,151.0,0.00016114,2]
[403914173,1769671840373,-500.0,0.00017899,2]
[403914175,1769671840383,-500.0,0.00017899,2]
[403914176,1769671840392,-70.20170863,0.00017899,2]
[403914177,1769671840403,-429.79829137,0.00017899,2]
[403914178,1769671840412,-500.0,0.00017899,2]
[403914179,1769671840422,-500.0,0.00017899,2]
[403914180,1769671840432,-500.0,0.00017899,2]
[403914181,1769671840442,-429.56162206,0.00017899,2]
[403914182,1769671840451,-455.64008657,0.00017899,2]
[403914201,1769671846237,-44.35991343,0.00017899,2]
[403914202,1769671846247,-500.0,0.00017899,2]
[403914203,1769671846257,-500.0,0.00017899,2]
[403914204,1769671846268,-500.0,0.00017899,2]
[403914205,1769671846278,-215.37946191,0.00017899,2]
[403914206,1769671846290,-240.71496136,0.00017899,2]
[403914207,1769671846301,-145.44503874,0.00017899,2]
[403914208,1769671846312,-354.55496126,0.00017899,2]
[403914209,1769671846322,-500.0,0.00017899,2]
[403914210,1769671846332,-500.0,0.00017899,2]
[403914211,1769671846342,-143.64503874,0.00017899,2]
[403914212,1769671846377,-356.35496126,0.00017899,2]
[403914213,1769671846387,-156.45516607,0.00017899,2]
[403914356,1769672747131,-151.0,0.0001593,2]
[403914357,1769672747153,-151.0,0.0001593,2]
[403914358,1769672747183,-58.58724329,0.00015938,2]
[403914363,1769672793041,-151.0,0.00015937,2]
[403914364,1769672793062,-70.85679483,0.00015937,2]
[403914368,1769672830074,-273.66447889,0.00015937,2]
[403914369,1769672830358,-300.0,0.00015937,2]
[403914370,1769672830380,-600.0,0.00015938,2]
[403914371,1769672830401,-1146.30313136,0.00015942,2]
[403914372,1769672830422,-195.0,0.00015942,2]
[403914373,1769672830442,-353.28099235,0.00015962,2]
[403914374,1769672830462,-600.0,0.00016051,2]
[403914375,1769672830482,-733.78596873,0.00016051,2]
[403914376,1769672830506,-150.0,0.000162,2]
[403914377,1769672830525,-150.0,0.00016237,2]
[403914378,1769672830547,-152.05623241,0.00016238,2]
[403914379,1769672830567,-150.0,0.00016275,2]
[403914380,1769672830589,-287.0,0.00016303,2]
[403914381,1769672830609,-150.0,0.00016312,2]
[403914382,1769672830630,-150.0,0.0001635,2]
[403914383,1769672830651,-281.6019209,0.00016354,2]
[403914384,1769672830673,-300.0,0.00016371,2]
[403914385,1769672830714,-1200.0,0.00016371,2]
[403914386,1769672830734,-300.0,0.00016371,2]
[403914387,1769672830754,-504.68661395,0.00016373,2]
[403914388,1769672830773,-500.0,0.00016373,2]
[403914389,1769672830793,-173.59196904,0.00016373,2]
[403914390,1769672830813,-500.0,0.00016373,2]
[403914391,1769672830832,-500.62094132,0.00016373,2]
[403914392,1769672830851,-150.0,0.00016387,2]
[403914393,1769672830871,-150.0,0.00016425,2]
[403914394,1769672830890,-150.0,0.00016462,2]
[403914395,1769672830911,-150.0,0.000165,2]
[403914396,1769672830930,-150.0,0.00016537,2]
[403914397,1769672830952,-150.0,0.00016575,2]
[403914398,1769672830973,-778.04570239,0.00016584,2]
[403914399,1769672833498,-2280.36765705,0.00016584,2]
[403914412,1769672960674,-151.0,0.00015921,2]
[403914413,1769672971550,151.0,0.00015928,2]
[403914414,1769672987762,151.0,0.00015925,2]
[403914415,1769673004201,151.0,0.00015918,2]
[403914418,1769673020629,151.0,0.00015926,2]
[403914422,1769673031342,-166.39156415,0.00016373,2]
[403914423,1769673031352,-289.0,0.00016518,2]
[403914424,1769673031362,-440.0,0.00016518,2]
[403914425,1769673031372,-181.58664056,0.00016584,2]
[403914426,1769673031383,-150.0,0.00016612,2]
[403914427,1769673031393,-1239.98,0.00016636,2]
[403914428,1769673031411,-4710.7537902,0.00016648,2]
[403914429,1769673031421,-150.0,0.0001665,2]
[403914430,1769673031434,-150.0,0.00016687,2]
[403914431,1769673031444,-150.0,0.00016725,2]
[403914432,1769673031454,-150.0,0.00016762,2]
[403914433,1769673031464,-150.0,0.00016762,2]
[403914434,1769673031475,-1200.0,0.00016787,2]
[403914435,1769673031486,-195.0,0.00016787,2]
[403914436,1769673031495,-300.0,0.00016787,2]
[403914437,1769673031505,-300.0,0.00016787,2]
[403914438,1769673031516,-8393.73,0.00016788,2]
[403914439,1769673031529,-156.91,0.00016793,2]
[403914440,1769673031539,-206.71,0.00016793,2]
[403914441,1769673031553,-150.0,0.000168,2]
[403914442,1769673031563,-2279.8,0.00016808,2]
[403914443,1769673031573,-150.0,0.00016837,2]
[403914444,1769673031583,-500.0,0.00016849,2]
[403914445,1769673031594,-150.0,0.00016875,2]
[403914446,1769673031604,-409.0,0.00016883,2]
[403914447,1769673031616,-200.0,0.00016895,2]
[403914449,1769673031626,-150.0,0.00016912,2]
[403914450,1769673031640,-1000.0,0.00016921,2]
[403914451,1769673031654,-150.0,0.0001695,2]
[403914452,1769673031664,-150.0,0.00016987,2]
[403914453,1769673031674,-250.0,0.00017,2]
[403914454,1769673031684,-500.0,0.00017005,2]
[403914455,1769673031694,-150.0,0.00017025,2]
[403914456,1769673031705,-550.0,0.00017025,2]
[403914457,1769673031715,-150.0,0.00017063,2]
[403914458,1769673031725,-418.55,0.00017099,2]
[403914459,1769673031737,-322.6107,0.00017099,2]
[403914460,1769673031749,-500.0,0.00017099,2]
[403914461,1769673031758,-500.0,0.00017099,2]
[403914462,1769673031768,-500.0,0.00017099,2]
[403914463,1769673031780,-500.0,0.00017099,2]
[403914464,1769673031790,-174.61919141,0.00017099,2]
[403914465,1769673031799,-578.20924308,0.00017099,2]
[403914466,1769673031810,-721.12765535,0.00017099,2]
[403914467,1769673031824,-854.2589148,0.00017099,2]
[403914468,1769673031835,-209.40437684,0.00017099,2]
[403914469,1769673031847,-150.0,0.000171,2]
[403914470,1769673031857,-150.0,0.00017137,2]
[403914471,1769673031867,-440.0,0.00017138,2]
[403914472,1769673031877,-217.15233878,0.00017154,2]
[403914473,1769673031887,-150.0,0.00017175,2]
[403914474,1769673031898,-500.0,0.00017178,2]
[403914475,1769673031908,-225.18697532,0.00017209,2]
[403914476,1769673031918,-150.0,0.00017212,2]
[403914477,1769673031928,-150.0,0.0001725,2]
[403914478,1769673031938,-233.51889341,0.00017264,2]
[403914479,1769673031948,-150.0,0.00017288,2]
[403914480,1769673031958,-242.15909246,0.00017319,2]
[403914481,1769673031968,-150.0,0.00017325,2]
[403914482,1769673031978,-150.0,0.00017362,2]
[403914483,1769673031990,-418.55,0.00017373,2]
[403914484,1769673032000,-251.11897888,0.00017374,2]
[403914485,1769673032010,-150.0,0.000174,2]
[403914486,1769673032024,-700.0,0.000174,6]
[403914487,1769673032034,-260.4103811,0.00017429,2]
[403914488,1769673032044,-150.0,0.00017437,2]
[403914489,1769673032053,-150.0,0.00017475,2]
[403914490,1769673032063,-270.0455652,0.00017484,2]
[403914491,1769673032073,-1400.0,0.000175,6]
[403914492,1769673032083,-150.0,0.00017513,2]
[403914493,1769673032094,-2032.5700607,0.0001752,2]
[403914494,1769673032103,-195.0,0.00017531,2]
[403914495,1769673032113,-600.0,0.00017531,2]
[403914496,1769673032124,-250.0,0.00017531,2]
[403914497,1769673032133,-300.0,0.00017531,2]
[403914498,1769673032142,-280.03725112,0.00017539,2]
[403914499,1769673032152,-150.0,0.0001755,2]
[403914500,1769673032163,-150.0,0.00017587,2]
[403914501,1769673032175,-290.39862941,0.00017594,2]
[403914502,1769673032185,-2200.0,0.000176,6]
[403914503,1769673032196,-168.0,0.00017613,2]
[403914504,1769673032207,-150.0,0.00017625,2]
[403914505,1769673032217,-168.0,0.0001763,2]
[403914506,1769673032226,-418.55,0.00017647,2]
[403914507,1769673032236,-413.54219802,0.00017647,2]
[403914508,1769673032252,-472.32429663,0.00017647,2]
[403914509,1769673032262,-277.68391477,0.00017649,2]
[403914510,1769673032275,-23.45946393,0.00017649,2]
[403914511,1769673032284,-150.0,0.00017662,2]
[403914512,1769673032294,-347.0,0.00017671,2]
[403914513,1769673032305,-169.49,0.00017683,2]
[403914514,1769673032315,-150.0,0.00017699,2]
[403914515,1769673032325,-150.0,0.00017699,2]
[403914516,1769673032335,-150.0,0.000177,2]
[403914517,1769673032346,-2900.0,0.000177,6]
[403914518,1769673032356,-168.0,0.00017723,2]
[403914519,1769673032365,-150.0,0.00017723,2]
[403914520,1769673032375,-150.0,0.00017738,2]
[403914521,1769673032385,-150.0,0.00017754,2]
[403914522,1769673032395,-150.0,0.00017754,2]
[403914523,1769673032405,-440.0,0.00017757,2]
[403914524,1769673032416,-150.0,0.00017775,2]
[403914525,1769673032425,-168.0,0.00017776,2]
[403914526,1769673032435,-150.0,0.00017778,2]
[403914527,1769673032445,-1611.6531849,0.000178,6]
[403914528,1769673032470,-1988.3468151,0.000178,6]
[403914529,1769673032481,-19.6531849,0.00017808,2]
[403914530,1769673032493,-130.3468151,0.00017808,2]
[403914531,1769673032503,-150.0,0.00017809,2]
[403914532,1769673032514,-150.0,0.00017809,2]
[403914533,1769673032525,-150.0,0.00017812,2]
[403914534,1769673032535,-200.0,0.00017833,2]
[403914535,1769673032547,-199.757061,0.00017841,2]
[403914536,1769673032559,-278.75656889,0.00017844,2]
[403914537,1769673032569,-377.1603,0.00017844,2]
[403914538,1769673032579,-150.0,0.0001785,2]
[403914539,1769673032598,-206.62,0.00017853,2]
[403914540,1769673032610,-200.0,0.00017856,2]
[403914541,1769673032622,-150.0,0.00017863,2]
[403914542,1769673032633,-150.0,0.00017863,2]